fUST/lending_fUST_20240410
["ID","MTS","AMOUNT","RATE_DAILY","PERIOD"]
[322031633,1712698235118,-500.0,0.00024657,2]
[322031634,1712698235127,-500.0,0.00024657,2]
[322031635,1712698235135,-500.0,0.00024657,2]
[322031636,1712698235145,-500.0,0.00024657,2]
[322031637,1712698235154,-500.0,0.00024657,2]
[322031638,1712698235163,-500.0,0.00024657,2]
[322031639,1712698235173,-500.0,0.00024657,2]
[322031640,1712698235183,-500.0,0.00024657,2]
[322031641,1712698235192,-500.0,0.00024657,2]
[322031642,1712698235201,-500.0,0.00024657,2]
[322031643,1712698235211,-500.0,0.00024657,2]
[322031644,1712698235221,-500.0,0.00024657,2]
[322031645,1712698235230,-500.0,0.00024657,2]
[322031646,1712698235240,-355.86776838,0.00024657,2]
[322031647,1712698235249,-500.0,0.00024657,2]
[322031648,1712698235259,-500.0,0.00024657,2]
[322031649,1712698235371,-501.082182,0.00024657,2]
[322031650,1712698235382,-913.67456629,0.00024657,2]
[322031651,1712698235980,19135.52113988,0.0002102,2]
[322031675,1712698238312,-1963.97984376,0.0002336,2]
[322031676,1712698238322,-155.37175216,0.0002336,2]
[322031677,1712698238332,-354.16543371,0.00024657,2]
[322031678,1712698238341,-2572.82,0.00024657,2]
[322031679,1712698238350,-581.32,0.00024657,2]
[322031680,1712698238360,-756.09,0.00024657,2]
[322031681,1712698238369,-500.0,0.00024657,2]
[322031682,1712698238378,-1246.52,0.00024657,2]
[322031683,1712698238387,-104.208474,0.00024657,2]
[322031717,1712698568550,-4208.0,0.00025997,35]
[322031718,1712698606076,765.84554286,0.0002219,5]
[322031719,1712698611495,-4208.0,0.00026007,35]
[322031720,1712698611515,-792.0,0.00026017,35]
[322031721,1712698621983,263.12159727,0.0002219,5]
[322031722,1712698647872,-3287.0,0.0002608,35]
[322031723,1712698647896,-1713.0,0.0002609,35]
[322031724,1712698713165,-1574.0,0.0002609,35]
[322031725,1712698713187,-3287.0,0.000261,35]
[322031726,1712698713207,-2000.0,0.000262,30]
[322031727,1712698713227,-2000.0,0.0002621,30]
[322031728,1712698713246,-2000.0,0.0002622,30]
[322031729,1712698713265,-2000.0,0.0002623,30]
[322031730,1712698713285,-2000.0,0.0002624,30]
[322031731,1712698713303,-2000.0,0.0002625,30]
[322031732,1712698713322,-2000.0,0.0002626,30]
[322031733,1712698713342,-2000.0,0.0002627,30]
[322031734,1712698713361,-1839.0,0.0002628,30]
[322031735,1712698802976,-2301.0,0.0002607,35]
[322031736,1712698803000,-2301.0,0.0002608,35]
[322031737,1712698803021,-2301.0,0.0002609,35]
[322031738,1712698803045,-161.0,0.0002628,30]
[322031739,1712698803068,-2000.0,0.0002629,30]
[322031740,1712698803090,-2000.0,0.000263,30]
[322031741,1712698803116,-2000.0,0.0002631,30]
[322031742,1712698803136,-1936.0,0.0002632,30]
[322031743,1712698831608,-64.0,0.0002632,30]
[322031744,1712698831627,-3937.819441,0.0002633,30]
[322031745,1712698831647,-353.0,0.00026545,35]
[322031746,1712698831666,-200.0,0.00026545,35]
[322031747,1712698831685,-353.0,0.00026555,35]
[322031748,1712698831704,-200.0,0.00026555,35]
[322031749,1712698831723,-353.0,0.00026565,35]
[322031750,1712698831741,-200.0,0.00026565,35]
[322031751,1712698831768,-157.0,0.00026819,35]
[322031752,1712698831786,-157.0,0.00026829,35]
[322031753,1712698831805,-174.12,0.00026829,35]
[322031754,1712698831825,-212.44,0.00026829,35]
[322031755,1712698831844,-157.0,0.00026839,35]
[322031756,1712698831863,-150.5,0.00026839,35]
[322031757,1712698831882,-150.5,0.00026839,35]
[322031806,1712699433467,-189.427547,0.00021107,2]
[322031807,1712699433477,-441.14937695,0.00021467,2]
[322031843,1712699438509,-1522.83046681,0.00021467,2]
[322031845,1712699438519,-97.41147579,0.00021468,2]
[322031852,1712699438566,-206.40814936,0.00021468,2]
[322031854,1712699438576,-1617.16242552,0.00021469,2]
[322031856,1712699438585,-562.79218199,0.0002147,2]
[322031858,1712699438594,-300.0,0.00021471,2]
[322031860,1712699438603,-300.0,0.00021471,2]
[322031863,1712699438612,-19135.52113988,0.00021472,2]
[322031866,1712699438621,-197.4891745,0.00021485,2]
[322031869,1712699438631,-200.0,0.00021555,2]
[322031871,1712699438639,-499.28903999,0.00022124,2]
[322031873,1712699438649,-171.41271381,0.00022224,2]
[322031875,1712699438658,-5292.70330902,0.00022331,2]
[322031877,1712699438667,-175.739345,0.00022341,2]
[322031879,1712699438677,-151.0,0.00023344,2]
[322031881,1712699438686,-1517.21997704,0.0002336,2]
[322031883,1712699438698,-3532.4104978,0.0002336,2]
[322031885,1712699438707,-420.0,0.00023618,2]
[322031887,1712699438716,-266.12790825,0.00024162,2]
[322031889,1712699438725,-785.80012861,0.0002423,2]
[322031891,1712699438734,-499.28903999,0.00024317,2]
[322031893,1712699438743,-157.59425558,0.0002441,2]
[322031895,1712699438752,-171.4127138,0.00024557,2]
[322031897,1712699438761,-155.6986578,0.00024641,2]
[322031898,1712699438771,-153.0,0.00024647,2]
[322031901,1712699438903,-379.20858322,0.00024655,2]
[322031902,1712699438917,-289.80982697,0.00024655,2]
[322031903,1712699438926,-1310.96630797,0.00024655,2]
[322031904,1712699438936,-2548.40467265,0.00024655,2]
[322031905,1712699438946,-278.36597163,0.00024655,2]
[322031906,1712699438955,-259.25777893,0.00024655,2]
[322031907,1712699438964,-1004.03660079,0.00024655,2]
[322031908,1712699438974,-108.61705601,0.00024655,2]
[322031909,1712699438987,-476.26374405,0.00024655,2]
[322031910,1712699438997,-2120.63245232,0.00024655,2]
[322031911,1712699439007,-3235.29500518,0.00024655,2]
[322031912,1712699439016,-353.86074834,0.00024655,2]
[322031914,1712699439025,-154.93802479,0.00024655,2]
[322031916,1712699439036,-155.24484011,0.00024656,2]
[322031918,1712699439046,-247.29264009,0.00024656,2]
[322031920,1712699439055,-298.95072335,0.00024656,2]
[322031922,1712699439065,-253.15719799,0.00024656,2]
[322031924,1712699439074,-456.01212331,0.00024656,2]
[322031926,1712699439083,-213.82033892,0.00024656,2]
[322031928,1712699439093,-22346.29728517,0.00024657,2]
[322032091,1712699440803,-7211.5313613,0.00024657,2]
[322032862,1712699522341,-247.0,0.00025997,35]
[322032863,1712699539633,-247.0,0.00026007,35]
[322032864,1712699539659,-247.0,0.00026017,35]
[322032865,1712699539691,-150.5,0.0002608,35]
[322032866,1712699539715,-150.5,0.0002608,35]
[322032867,1712699539741,-1611.0,0.0002608,35]
[322032868,1712699539767,-150.5,0.0002609,35]
[322032869,1712699539793,-150.5,0.0002609,35]
[322032870,1712699539920,-1304.0,0.0002609,35]
[322032873,1712699605630,-150.5,0.0002608,35]
[322032874,1712699605656,-1319.0,0.0002608,35]
[322032875,1712699605682,-150.5,0.0002609,35]
[322032876,1712699605709,-1319.0,0.0002609,35]
[322032877,1712699605734,-150.5,0.000261,35]
[322032878,1712699605759,-150.5,0.000261,35]
[322032879,1712699606089,-520.0,0.000261,35]
[322033233,1712700640806,-175.739345,0.00023371,2]
[322033234,1712700640818,-523.86675241,0.00024,2]
[322033235,1712700640828,-157.59425559,0.0002441,2]
[322033236,1712700640837,-332.36006112,0.00024557,2]
[322033237,1712700640847,-374.46678001,0.00024557,2]
[322033238,1712700640856,-175.75,0.000246,2]
[322033239,1712700640867,-300.0,0.00024655,2]
[322033240,1712700640876,-1535.0728283,0.00024656,2]
[322033241,1712700640885,-193.16389619,0.00024656,2]
[322033242,1712700640894,-303.51399435,0.00024656,2]
[322033243,1712700640904,-540.754038,0.00024656,2]
[322033244,1712700640913,-1047.99698411,0.00024656,2]
[322033245,1712700640923,-533.37960505,0.00024657,2]
[322033250,1712700644328,-666.8807284,0.00024657,2]
[322033987,1712701837973,-1485.70436416,0.00022556,2]
[322033988,1712701837983,-349.2445016,0.00022557,2]
[322033989,1712701837992,-1150.12196847,0.00023568,2]
[322033990,1712701838001,-327.6584325,0.00024557,2]
[322033991,1712701838010,-104.52560866,0.00024631,2]
[322033992,1712701838084,-195.47439134,0.00024631,2]
[322033993,1712701838094,-155.0697814,0.00024655,2]
[322033995,1712701838103,-300.0,0.00024655,2]
[322033997,1712701838112,-242.74204017,0.00024656,2]
[322033999,1712701838121,-1167.82666937,0.00024656,2]
[322034001,1712701838131,-2371.89248295,0.00024656,2]
[322034002,1712701838140,-8105.68180623,0.00024656,2]
[322034187,1712701839815,-1423.99290396,0.00024632,2]
[322034367,1712701846511,155.16869858,0.00019723,2]
[322034376,1712702359376,522.35005297,0.00021137,4]
[322034378,1712702373334,438.74688733,0.00021277,4]
[322034379,1712702383240,16047.23018457,0.00019723,2]
[322034381,1712702511863,159.87003342,0.00020934,2]
[322034383,1712702628384,282.31285316,0.0002102,2]
[322034384,1712702634382,154.9690062,0.0002102,2]
[322034385,1712702634577,687.19966601,0.0002102,2]
[322034386,1712702642055,300.0,0.0002102,2]
[322034387,1712702643201,470.02690454,0.0002102,2]
[322034388,1712702646389,215.764455,0.0002102,2]
[322034389,1712702654597,3291.0761489,0.0002102,2]
[322034390,1712702655871,282.7345517,0.0002102,2]
[322034391,1712702657537,154.9690062,0.0002102,2]
[322034392,1712702663694,5783.085097,0.0002102,2]
[322034393,1712702666868,1930.68038705,0.0002102,2]
[322034394,1712702669823,154.9690062,0.0002102,2]
[322034395,1712702671066,543.34960775,0.0002102,2]
[322034396,1712702671099,942.35475641,0.0002102,2]
[322034397,1712702673796,16047.23018457,0.0002102,2]
[322034398,1712702681176,189.049143,0.00020244,2]
[322034399,1712702683316,3786.5841579,0.00020244,2]
[322034400,1712702689786,3676.87446867,0.0002102,2]
[322034401,1712702700679,300.0,0.0002102,2]
[322034402,1712702707791,5342.51224315,0.0002102,2]
[322034403,1712702736282,597.3617661,0.0002025,2]
[322034404,1712702749563,1485.70436416,0.0002102,2]
[322034405,1712702760570,300.0,0.0002102,2]
[322034406,1712702761284,300.0,0.0002102,2]
[322034407,1712702781907,232.82966774,0.0001892,2]
[322034408,1712702833165,948.0,0.0002102,2]
[322034409,1712702861378,156.09538602,0.0002102,2]
[322034410,1712702880672,300.0,0.0002102,2]
[322034411,1712702881364,300.0,0.0002102,2]
[322034414,1712703000530,300.0,0.0002102,2]
[322034415,1712703001517,220.0,0.0002102,2]
[322034416,1712703012246,548.76099586,0.0002102,2]
[322034431,1712703033105,-154.9690062,0.00021021,2]
[322034432,1712703033115,-277.03921209,0.00021021,2]
[322034433,1712703033124,-1963.97984376,0.00021021,2]
[322034434,1712703033133,-188.03083804,0.00021022,2]
[322034435,1712703033142,-156.21841894,0.00021022,2]
[322034436,1712703033152,-235.00361674,0.00021022,2]
[322034437,1712703033162,-189.69776735,0.00021022,2]
[322034438,1712703033171,-172.51253864,0.00021022,2]
[322034439,1712703033180,-216.28261912,0.00021022,2]
[322034440,1712703033190,-202.5762962,0.00021022,2]
[322034441,1712703033199,-1126.28674024,0.00021022,2]
[322034442,1712703033209,-1793.15862237,0.00021022,2]
[322034443,1712703033220,-1331.45794425,0.00021022,2]
[322034444,1712703033229,-310.68459818,0.00021177,2]
[322034445,1712703033241,-1094.07588583,0.00021274,2]
[322034446,1712703033252,-548.76099586,0.00021274,2]
[322034447,1712703033263,-155.19672721,0.00021275,2]
[322034448,1712703033272,-500.0,0.00021276,2]
[322034449,1712703033282,-370.7484699,0.00021276,2]
[322034450,1712703033292,-378.66660873,0.00021276,2]
[322034451,1712703033301,-2532.29839857,0.00021276,2]
[322034452,1712703033313,-56452.49941352,0.00021276,2]
[322034453,1712703033322,-2542.09040248,0.00021277,2]
[322034454,1712703033332,-155.61924772,0.00021277,2]
[322034455,1712703033342,-155.52988827,0.00021277,2]
[322034456,1712703033351,-4631.78380535,0.00021277,2]
[322034457,1712703033360,-255.09223074,0.00021277,2]
[322034458,1712703033369,-155.07668798,0.00021277,2]
[322034459,1712703033378,-192.02096102,0.00021277,2]
[322034857,1712703043204,-105.4345739,0.00021277,2]
[322034858,1712703043214,-155.27576764,0.00021277,2]
[322034859,1712703043223,-458.23618824,0.00021277,2]
[322034860,1712703043258,-4859.84299656,0.00021277,2]
[322034870,1712703046051,-400.83883555,0.00021275,2]
[322034871,1712703046063,-696.55576686,0.00021277,2]
[322034872,1712703046072,-8501.99447187,0.00021277,2]
[322034873,1712703046081,-289.09997072,0.00021277,2]
[322034874,1712703046092,-1292.00990032,0.00021277,2]
[322034875,1712703046103,-256.04017498,0.00021277,2]
[322034876,1712703046114,-154.98450155,0.00021277,2]
[322034877,1712703046125,-155.53425428,0.00021277,2]
[322034878,1712703046135,-1092.46517485,0.00021277,2]
[322034879,1712703046145,-1755.09421429,0.00021277,2]
[322034880,1712703046156,-156.38945206,0.00021277,2]
[322034881,1712703046169,-241.90686343,0.00021277,2]
[322034882,1712703046181,-362.55538513,0.00021277,2]
[322034883,1712703046192,-301.56989069,0.00021277,2]
[322034884,1712703046203,-156.20487262,0.00021277,2]
[322034885,1712703046214,-2217.75555099,0.00021277,2]
[322034886,1712703046223,-151.0,0.00021277,2]
[322034887,1712703046232,-151.0,0.00021277,2]
[322034888,1712703046243,-255.134674,0.00021277,2]
[322034889,1712703046256,-151.0,0.00021277,2]
[322034890,1712703046266,-151.0,0.00021277,2]
[322034891,1712703046276,-151.0,0.00021277,2]
[322034892,1712703046286,-151.0,0.00021277,2]
[322034893,1712703046297,-252.728674,0.00021277,2]
[322034894,1712703046307,-232.74121,0.00021277,2]
[322034895,1712703046317,-232.74121,0.00021277,2]
[322034896,1712703046328,-232.74121,0.00021277,2]
[322034897,1712703046338,-232.74121,0.00021277,2]
[322034898,1712703046346,-232.74121,0.00021277,2]
[322034899,1712703046356,-232.74121,0.00021277,2]
[322034900,1712703046365,-232.74121,0.00021277,2]
[322034901,1712703046374,-232.74121,0.00021277,2]
[322034902,1712703046384,-151.0,0.00021277,2]
[322034903,1712703046393,-151.0,0.00021277,2]
[322034904,1712703046402,-228.756963,0.00021277,2]
[322034905,1712703046412,-228.756963,0.00021277,2]
[322034906,1712703046422,-228.756963,0.00021277,2]
[322034907,1712703046431,-228.756963,0.00021277,2]
[322034908,1712703046440,-228.756963,0.00021277,2]
[322034909,1712703046449,-228.756963,0.00021277,2]
[322034910,1712703046458,-228.756963,0.00021277,2]
[322034911,1712703046468,-228.756963,0.00021277,2]
[322034912,1712703046477,-151.0,0.00021277,2]
[322034913,1712703046486,-151.0,0.00021277,2]
[322034914,1712703046495,-151.0,0.00021277,2]
[322034915,1712703046504,-176.025433,0.00021277,2]
[322034916,1712703046513,-151.0,0.00021277,2]
[322034917,1712703046522,-151.0,0.00021277,2]
[322034918,1712703046531,-151.0,0.00021277,2]
[322034919,1712703046540,-151.0,0.00021277,2]
[322034920,1712703046549,-151.0,0.00021277,2]
[322034921,1712703046558,-151.0,0.00021277,2]
[322034922,1712703046567,-151.0,0.00021277,2]
[322034923,1712703046577,-151.0,0.00021277,2]
[322034924,1712703046585,-151.0,0.00021277,2]
[322034925,1712703046594,-151.0,0.00021277,2]
[322034926,1712703046603,-249.562302,0.00021277,2]
[322034927,1712703046612,-249.562302,0.00021277,2]
[322034928,1712703046621,-249.562302,0.00021277,2]
[322034929,1712703046630,-249.562302,0.00021277,2]
[322034930,1712703046639,-249.562302,0.00021277,2]
[322034931,1712703046649,-249.562302,0.00021277,2]
[322034932,1712703046658,-249.562302,0.00021277,2]
[322034933,1712703046667,-190.53073029,0.00021277,2]
[322034934,1712703046683,-59.03157171,0.00021277,2]
[322034935,1712703046691,-249.562302,0.00021277,2]
[322034936,1712703046700,-249.562302,0.00021277,2]
[322034937,1712703046709,-249.562302,0.00021277,2]
[322034938,1712703046718,-249.562302,0.00021277,2]
[322034939,1712703046727,-249.562302,0.00021277,2]
[322034940,1712703046736,-249.562302,0.00021277,2]
[322034941,1712703046745,-249.562302,0.00021277,2]
[322034942,1712703046754,-249.562302,0.00021277,2]
[322034943,1712703046763,-249.562302,0.00021277,2]
[322034944,1712703046772,-249.562302,0.00021277,2]
[322034945,1712703046781,-249.562302,0.00021277,2]
[322034946,1712703046790,-249.562296,0.00021277,2]
[322034947,1712703046799,-151.0,0.00021277,2]
[322034948,1712703046808,-151.0,0.00021277,2]
[322034949,1712703046817,-151.0,0.00021277,2]
[322034950,1712703046826,-151.0,0.00021277,2]
[322034951,1712703046836,-151.0,0.00021277,2]
[322034952,1712703046845,-151.0,0.00021277,2]
[322034953,1712703046854,-151.0,0.00021277,2]
[322034954,1712703046864,-151.0,0.00021277,2]
[322034955,1712703046873,-151.0,0.00021277,2]
[322034956,1712703046882,-151.0,0.00021277,2]
[322034957,1712703046891,-195.712,0.00021277,2]
[322034958,1712703046900,-151.0,0.00021277,2]
[322034959,1712703046909,-151.0,0.00021277,2]
[322034960,1712703046921,-151.0,0.00021277,2]
[322034961,1712703046930,-151.0,0.00021277,2]
[322034962,1712703046939,-151.0,0.00021277,2]
[322034963,1712703046949,-151.0,0.00021277,2]
[322034964,1712703046958,-151.0,0.00021277,2]
[322034965,1712703046967,-151.0,0.00021277,2]
[322034966,1712703046978,-151.0,0.00021277,2]
[322034967,1712703046987,-151.0,0.00021277,2]
[322034968,1712703046996,-151.0,0.00021277,2]
[322034969,1712703047006,-225.865216,0.00021277,2]
[322034970,1712703047017,-3652.508975,0.00021277,2]
[322034971,1712703047027,-3652.508975,0.00021277,2]
[322034972,1712703047037,-3652.508975,0.00021277,2]
[322034973,1712703047048,-2233.23777284,0.00021277,2]
[322034974,1712703047062,-1419.27120216,0.00021277,2]
[322034975,1712703047072,-167.280133,0.00021277,2]
[322034976,1712703047081,-3652.508975,0.00021277,2]
[322034977,1712703047090,-3652.508975,0.00021277,2]
[322034978,1712703047100,-3652.508975,0.00021277,2]
[322034979,1712703047109,-3652.508975,0.00021277,2]
[322034980,1712703047118,-3652.508975,0.00021277,2]
[322034981,1712703047127,-3652.508975,0.00021277,2]
[322034982,1712703047136,-3652.508975,0.00021277,2]
[322034983,1712703047146,-3652.508975,0.00021277,2]
[322034984,1712703047155,-3652.508975,0.00021277,2]
[322034985,1712703047166,-3652.508975,0.00021277,2]
[322034986,1712703047175,-3652.508975,0.00021277,2]
[322034987,1712703047184,-3652.508975,0.00021277,2]
[322034988,1712703047193,-3652.508975,0.00021277,2]
[322034989,1712703047202,-3652.508975,0.00021277,2]
[322034990,1712703047211,-3652.508975,0.00021277,2]
[322034991,1712703047220,-3652.508969,0.00021277,2]
[322034992,1712703047229,-179.056044,0.00021277,2]
[322034993,1712703047238,-179.056044,0.00021277,2]
[322034994,1712703047248,-179.056044,0.00021277,2]
[322034995,1712703047258,-179.056044,0.00021277,2]
[322034996,1712703047267,-179.056044,0.00021277,2]
[322034997,1712703047276,-179.056044,0.00021277,2]
[322034998,1712703047286,-179.056044,0.00021277,2]
[322034999,1712703047296,-179.056044,0.00021277,2]
[322035000,1712703047305,-179.056044,0.00021277,2]
[322035001,1712703047314,-179.056044,0.00021277,2]
[322035002,1712703047324,-179.056044,0.00021277,2]
[322035003,1712703047334,-179.056044,0.00021277,2]
[322035004,1712703047343,-179.056044,0.00021277,2]
[322035005,1712703047352,-179.056044,0.00021277,2]
[322035006,1712703047362,-179.056044,0.00021277,2]
[322035007,1712703047372,-179.056044,0.00021277,2]
[322035008,1712703047382,-179.056044,0.00021277,2]
[322035009,1712703047391,-179.056044,0.00021277,2]
[322035010,1712703047402,-179.056044,0.00021277,2]
[322035011,1712703047412,-179.056044,0.00021277,2]
[322035012,1712703047422,-489.584091,0.00021277,2]
[322035013,1712703047431,-489.584091,0.00021277,2]
[322035014,1712703047440,-489.584091,0.00021277,2]
[322035015,1712703047451,-489.584091,0.00021277,2]
[322035016,1712703047462,-489.584091,0.00021277,2]
[322035017,1712703047471,-489.584091,0.00021277,2]
[322035018,1712703047494,-489.584091,0.00021277,2]
[322035019,1712703047503,-489.584091,0.00021277,2]
[322035020,1712703047513,-489.584091,0.00021277,2]
[322035021,1712703047523,-489.584091,0.00021277,2]
[322035022,1712703047533,-489.584091,0.00021277,2]
[322035023,1712703047544,-489.584091,0.00021277,2]
[322035024,1712703047554,-489.584091,0.00021277,2]
[322035025,1712703047564,-489.584091,0.00021277,2]
[322035026,1712703047574,-489.584091,0.00021277,2]
[322035027,1712703047584,-489.584091,0.00021277,2]
[322035028,1712703047594,-489.584091,0.00021277,2]
[322035029,1712703047605,-489.584091,0.00021277,2]
[322035030,1712703047615,-489.584091,0.00021277,2]
[322035031,1712703047627,-489.584085,0.00021277,2]
[322035032,1712703047639,-1060.433027,0.00021277,2]
[322035033,1712703047650,-1060.433027,0.00021277,2]
[322035034,1712703047661,-1060.433027,0.00021277,2]
[322035035,1712703047672,-1060.433027,0.00021277,2]
[322035036,1712703047683,-1060.433027,0.00021277,2]
[322035037,1712703047694,-1060.433027,0.00021277,2]
[322035038,1712703047705,-1060.433027,0.00021277,2]
[322035039,1712703047716,-1060.433027,0.00021277,2]
[322035040,1712703047726,-1060.433027,0.00021277,2]
[322035041,1712703047737,-1060.433027,0.00021277,2]
[322035042,1712703047747,-1060.433027,0.00021277,2]
[322035043,1712703047757,-1060.433027,0.00021277,2]
[322035044,1712703047769,-1060.433027,0.00021277,2]
[322035045,1712703047778,-1060.433027,0.00021277,2]
[322035046,1712703047790,-1060.433027,0.00021277,2]
[322035047,1712703047799,-1060.433027,0.00021277,2]
[322035048,1712703047809,-1060.433027,0.00021277,2]
[322035049,1712703047819,-1060.433027,0.00021277,2]
[322035050,1712703047830,-1060.433027,0.00021277,2]
[322035051,1712703047839,-216.672341,0.00021277,2]
[322035052,1712703047849,-1060.433028,0.00021277,2]
[322035053,1712703047859,-151.0,0.00021277,2]
[322035054,1712703047868,-151.0,0.00021277,2]
[322035055,1712703047877,-151.0,0.00021277,2]
[322035056,1712703047886,-151.0,0.00021277,2]
[322035057,1712703047896,-151.0,0.00021277,2]
[322035058,1712703047907,-280.153864,0.00021277,2]
[322035059,1712703047916,-151.0,0.00021277,2]
[322035060,1712703047926,-280.153864,0.00021277,2]
[322035061,1712703047935,-151.0,0.00021277,2]
[322035062,1712703047944,-280.153864,0.00021277,2]
[322035063,1712703047953,-151.0,0.00021277,2]
[322035064,1712703047963,-280.153864,0.00021277,2]
[322035065,1712703047972,-254.108946,0.00021277,2]
[322035066,1712703047982,-280.153864,0.00021277,2]
[322035067,1712703047990,-280.153864,0.00021277,2]
[322035068,1712703048000,-280.153864,0.00021277,2]
[322035069,1712703048009,-280.153864,0.00021277,2]
[322035070,1712703048018,-280.153864,0.00021277,2]
[322035071,1712703048028,-280.153864,0.00021277,2]
[322035072,1712703048037,-280.153864,0.00021277,2]
[322035073,1712703048047,-151.0,0.00021277,2]
[322035074,1712703048057,-280.153864,0.00021277,2]
[322035075,1712703048066,-151.0,0.00021277,2]
[322035076,1712703048078,-280.153864,0.00021277,2]
[322035077,1712703048098,-151.0,0.00021277,2]
[322035078,1712703048122,-280.153864,0.00021277,2]
[322035079,1712703048145,-151.0,0.00021277,2]
[322035080,1712703048166,-280.153864,0.00021277,2]
[322035081,1712703048190,-151.0,0.00021277,2]
[322035082,1712703048212,-280.153864,0.00021277,2]
[322035083,1712703048234,-151.0,0.00021277,2]
[322035084,1712703048256,-280.153864,0.00021277,2]
[322035085,1712703048277,-280.153864,0.00021277,2]
[322035086,1712703048297,-280.153864,0.00021277,2]
[322035087,1712703048306,-280.153866,0.00021277,2]
[322035088,1712703048446,-151.0,0.00021277,2]
[322035089,1712703048455,-151.0,0.00021277,2]
[322035090,1712703048464,-151.0,0.00021277,2]
[322035091,1712703048473,-151.0,0.00021277,2]
[322035092,1712703048482,-151.0,0.00021277,2]
[322035093,1712703048492,-151.0,0.00021277,2]
[322035094,1712703048500,-151.0,0.00021277,2]
[322035095,1712703048509,-151.0,0.00021277,2]
[322035096,1712703048518,-151.0,0.00021277,2]
[322035097,1712703048527,-151.0,0.00021277,2]
[322035098,1712703048536,-151.0,0.00021277,2]
[322035099,1712703048545,-151.0,0.00021277,2]
[322035100,1712703048554,-151.0,0.00021277,2]
[322035101,1712703048563,-151.0,0.00021277,2]
[322035102,1712703048572,-151.0,0.00021277,2]
[322035103,1712703048581,-151.0,0.00021277,2]
[322035104,1712703048590,-151.0,0.00021277,2]
[322035105,1712703048599,-151.0,0.00021277,2]
[322035106,1712703048608,-209.767712,0.00021277,2]
[322035107,1712703048617,-538.125246,0.00021277,2]
[322035108,1712703048626,-538.125246,0.00021277,2]
[322035109,1712703048635,-538.125246,0.00021277,2]
[322035110,1712703048644,-538.125246,0.00021277,2]
[322035111,1712703048653,-538.125246,0.00021277,2]
[322035112,1712703048663,-538.125246,0.00021277,2]
[322035113,1712703048673,-538.125246,0.00021277,2]
[322035114,1712703048682,-538.125246,0.00021277,2]
[322035115,1712703048691,-538.125246,0.00021277,2]
[322035116,1712703048700,-538.125246,0.00021277,2]
[322035117,1712703048710,-538.125246,0.00021277,2]
[322035118,1712703048720,-538.125246,0.00021277,2]
[322035119,1712703048731,-538.125246,0.00021277,2]
[322035120,1712703048741,-538.125246,0.00021277,2]
[322035121,1712703048751,-538.125246,0.00021277,2]
[322035122,1712703048761,-538.125246,0.00021277,2]
[322035123,1712703048772,-538.125246,0.00021277,2]
[322035124,1712703048783,-538.125246,0.00021277,2]
[322035125,1712703048794,-538.125246,0.00021277,2]
[322035126,1712703048803,-538.125253,0.00021277,2]
[322035127,1712703048812,-151.0,0.00021277,2]
[322035128,1712703048821,-151.0,0.00021277,2]
[322035129,1712703048831,-151.0,0.00021277,2]
[322035130,1712703048840,-151.0,0.00021277,2]
[322035131,1712703048849,-151.0,0.00021277,2]
[322035132,1712703048860,-151.0,0.00021277,2]
[322035133,1712703048870,-155.588823,0.00021277,2]
[322035134,1712703048881,-302.135223,0.00021277,2]
[322035135,1712703048891,-302.135223,0.00021277,2]
[322035136,1712703048901,-302.135223,0.00021277,2]
[322035137,1712703048912,-302.135223,0.00021277,2]
[322035138,1712703048922,-302.135223,0.00021277,2]
[322035139,1712703048933,-302.135223,0.00021277,2]